Cogmind - Beta 17.1 @@@ ROGUE MODE // 2026.08.30 @ 16:23:00 Player: UnderDoug Result: Destroyed by G-47 Trooper with Particle Gun Performance ------------- Evolutions (0) 0 Regions Visited (4) 800 Robots Destroyed (18) 90 Value Destroyed (422) 422 Prototype IDs (23) 460 Alien Tech Used (0) 0 Bonus (300) 300 TOTAL SCORE: 2072 Bonus ------- Aligned with FarCom 300 Cogmind --------- Core Integrity 0/250 Matter 300/300 Energy 160/160 System Corruption 0% Temperature Warm (123) Movement Treading (160) Location -9/Mines Parts ------- > --- POWER (1) -------- Light Nuclear Core > --- PROPULSION (2) --- Light Treads Light Treads > --- UTILITY (2) ------ ECM Suite Core Shielding > --- WEAPON (2) ------- Small Laser > --- INVENTORY (5) ---- Light Ion Engine Light Treads Latent Energy Streamer Grenade Launcher Mining Claw Peak State ------------ > --- POWER ------------ Light Nuclear Core > --- PROPULSION ------- Light Treads Light Treads > --- UTILITY ---------- Improved Heat Sink ECM Suite > --- WEAPON ----------- Small Laser Mining Laser > --- INVENTORY -------- Light Ion Engine Light Treads Latent Energy Streamer Grenade Launcher Mining Claw [Rating: 12] Favorites ----------- Power Light Nuclear Core Engine Light Ion Engine Power Core Light Nuclear Core Propulsion Light Treads Treads Light Treads Leg Aluminum Leg Wheel Compact Wheel Utility ECM Suite Device ECM Suite Storage Small Storage Unit Protection Core Shielding Weapon Small Laser Energy Gun Small Laser Ballistic Gun Light Assault Rifle Launcher Grenade Launcher Special Weapon Mining Laser Slashing Weapon Mining Claw Build | -11 -10 -10 -10 -9 ------- Run | Yrd Mat Min Exi Min Slots Evolved . | . . . . . Power . | . . . . . Propulsion . | . . . . . Utility . | . . . . . Weapon . | . . . . . Parts Attached 28 | 8 18 1 . 1 Power 5 | 1 4 . . . Engine 4 | 1 3 . . . Core 1 | . 1 . . . Reactor . | . . . . . Propulsion 10 | 4 6 . . . Treads 3 | 2 1 . . . Leg 5 | . 5 . . . Wheel 2 | 2 . . . . Hover . | . . . . . Flight . | . . . . . Utility 4 | 1 2 . . 1 Device 2 | . 2 . . . Storage 1 | 1 . . . . Processor . | . . . . . Hackware . | . . . . . Protection 1 | . . . . 1 Artifact . | . . . . . Weapon 9 | 2 6 1 . . Energy Gun 5 | 2 3 . . . Energy Cannon . | . . . . . Ballistic Gun 1 | . 1 . . . Ballistic Cannon . | . . . . . Launcher 1 | . 1 . . . Special Weapon 1 | . . 1 . . Impact Weapon . | . . . . . Slashing Weapon 1 | . 1 . . . Piercing Weapon . | . . . . . Special Melee Weapon . | . . . . . Unidentified Prototypes . | . . . . . Parts Lost 8 | . 7 . . 1 Power 2 | . 2 . . . Propulsion 1 | . 1 . . . Utility . | . . . . . Weapon 5 | . 4 . . 1 Highest Loss Streak 4 | . 4 . . 1 To Critical Strikes . | . . . . . Average Backups 4 | 3 5 5 5 5 Power 1 | . 1 1 1 1 Propulsion 1 | 1 2 1 1 1 Utility . | . . . . . Weapon 2 | . 1 2 3 3 Tool/Special . | . . . . . Unused Backups 1 | . . . . 1 Power . | . . . . . Propulsion . | . . . . . Utility . | . . . . . Weapon 1 | . . . . 1 Tool/Special . | . . . . . Average Slot Usage (%) 98 | . 96 100 100 99 Engine 3 | . 10 . . . Core 10 | . 3 14 14 14 Treads 20 | . 7 28 28 28 Leg 6 | . 16 . . . Wheel 1 | . 3 . . . Device 24 | . 19 28 28 24 Storage 2 | . 5 . . . Energy Gun 14 | . 15 14 14 14 Ballistic Gun 1 | . 4 . . . Launcher 3 | . 6 11 . . Special Weapon 7 | . . 2 14 13 Peak Build Rating 12 | 6 11 11 12 12 Average Rating 10 | 4 8 10 11 11 On Entrance 8 | . 6 11 11 12 Avg Prop Armor Cover (%) . | . . . . . Naked Turns . | . . . . . Heaviest Build 14 | 14 14 12 10 10 Greatest Support 40 | 40 40 40 40 40 Greatest Overweight (x) . | . . . . . Average Overweight (x) . | . . . . . Largest Inventory Capacity 8 | 8 8 5 5 5 Average Capacity 5 | 6 6 5 5 5 Most Carried 8 | 6 8 5 5 5 Average Carried 5 | 3 5 4 5 5 Final Capacity 8 | 8 5 5 5 5 Final Carried 6 | 6 5 5 5 5 Class Distribution -------------------- 84% | Mutant 15% | Scavenger-Mutant Dominant Class ---------------- Mutant | -10/Materials Mutant | -10/Mines Mutant | -10/Exiles Mutant | -9/Mines Resources | -11 -10 -10 -10 -9 ----------- Run | Yrd Mat Min Exi Min Matter Collected 591 | 245 256 70 . 20 Remotely . | . . . . . Salvage Created 468 | . 355 68 . 45 Parts 26 | . 24 1 . 1 Haulers Intercepted . | . . . . . Recyclers Shooed 1 | . 1 . . . Parts Field Recycled . | . . . . . Retrieved Matter . | . . . . . Parts Self-Destructed . | . . . . . Prevented . | . . . . . Parts Restored . | . . . . . Kills | -11 -10 -10 -10 -9 ------- Run | Yrd Mat Min Exi Min Combat Hostiles Destroyed 18 | . 15 2 . 1 Guns 12 | . 11 . . 1 AOE 6 | . 4 2 . . Classes Destroyed 2 | . 2 . . . Swarmer 9 | . 9 . . . Grunt 9 | . 6 2 . 1 Best Kill Streak 4 | . 4 2 . 1 Combat Bots Only 4 | . 4 2 . 1 Max Kills in Single Turn 3 | . 3 1 . 1 Gunslinging . | . . . . . Exploded 3 | . 3 1 . . Melee . | . . . . . Uniques/NPCs Destroyed . | . . . . . Combat | -11 -10 -10 -10 -9 -------- Run | Yrd Mat Min Exi Min Hostile Shots Fired 171 | . 146 7 . 18 Missed 45 | . 40 2 . 3 Hits 126 | . 106 5 . 15 Projectile 126 | . 106 5 . 15 Critical Strikes 2 | . 2 . . . Damage Taken 1302 | . 1025 73 . 204 Core 256 | . 193 17 . 46 Absorbed by Shields . | . . . . . Redirected to Shielding 10 | . . . . 10 Regen/Repaired (Parts) 44 | . 44 . . . Core Remaining (%) 100 | 100 . . . . Volleys Fired 68 | . 54 4 . 10 Largest 2 | . 2 2 . 1 Hottest 100 | . 80 70 . 100 Shots Fired 107 | . 90 7 . 10 Gun 99 | . 87 4 . 8 Cannon . | . . . . . Launcher 6 | . 3 3 . . Special 2 | . . . . 2 Kinetic 46 | . 46 . . . Thermal 47 | . 33 4 . 10 Explosive 6 | . 3 3 . . Electromagnetic 8 | . 8 . . . Robot Hit Streak 7 | . 7 4 . 6 Robot Miss Streak 4 | . 4 2 . 1 Penetration Max . | . . . . . Secondary Targets 1 | . 1 . . . Max Gunslinging Chain 1 | . 1 . . . Shots Hit Robots 64 | . 54 4 . 6 Core Hits 32 | . 25 4 . 3 Critical Kills . | . . . . . Critical Parts Destroyed . | . . . . . Critical Strikes . | . . . . . Melee Attacks . | . . . . . Impact . | . . . . . Slashing . | . . . . . Piercing . | . . . . . Sneak Attacks . | . . . . . Combat Hostiles . | . . . . . Follow-up Attacks . | . . . . . Damage Inflicted 987 | . 768 153 . 66 Guns 608 | . 508 34 . 66 Cannons . | . . . . . Explosions 375 | . 256 119 . . Melee . | . . . . . Ramming 4 | . 4 . . . Kinetic 274 | . 274 . . . Thermal 299 | . 199 34 . 66 Explosive 375 | . 256 119 . . Electromagnetic 35 | . 35 . . . Impact . | . . . . . Slashing . | . . . . . Piercing . | . . . . . Highest Corruption . | . . . . . Average Corruption . | . . . . . Corruption Purged . | . . . . . Corruption Blocked . | . . . . . Overload Shots . | . . . . . Overflow Damage . | . . . . . Projectiles . | . . . . . Explosions . | . . . . . Melee . | . . . . . Knockbacks . | . . . . . Impact . | . . . . . Kinetic . | . . . . . Secondary . | . . . . . Self-Inflicted Damage 18 | . 18 . . . Shots 1 | . 1 . . . Rammed . | . . . . . Targets Rammed 1 | . 1 . . . Kicked 1 | . 1 . . . Crushed . | . . . . . Highest Temperature 114 | . 62 . . 114 Average Temperature 28 | . 23 . . 60 Received Heat Transfer 375 | . 219 42 . 114 Siege Activations . | . . . . . Martial Activations . | . . . . . Shielding Activations . | . . . . . Robots Disrupted . | . . . . . Combat Hostiles . | . . . . . Robots Corrupted . | . . . . . Combat Hostiles . | . . . . . Parts Fried . | . . . . . Impact Corruptions . | . . . . . Robots Melted . | . . . . . Combat Hostiles . | . . . . . Parts Melted 2 | . 1 . . 1 Heat Transferred 675 | . 450 75 . 150 Parts Sabotaged . | . . . . . Parts Stolen . | . . . . . Parts Stripped . | . . . . . Power Chain Reactions . | . . . . . Alert | -11 -10 -10 -10 -9 ------- Run | Yrd Mat Min Exi Min Maximum Alert Level . | . . . . . Low Security (%) 100 | 100 100 100 . 100 Level 1 . | . . . . . Level 2 . | . . . . . Level 3 . | . . . . . Level 4 . | . . . . . Level 5 . | . . . . . High Security . | . . . . . Max Security . | . . . . . Peak Influence 127 | . 127 43 . 20 Initial . | . . . . . Average 39 | . 61 12 . . Influence Increases 539 | . 459 53 . 27 Destroy 0b10 Robot/C 360 | . 300 40 . 20 Destroy Leader 70 | . 60 10 . . Successful Hack 19 | . 14 . . 5 Destroy Structure 30 | . 25 3 . 2 Lose Combat Pursuer 60 | . 60 . . . Influence Decreases 519 | . 459 53 . 7 Time Decay 362 | . 302 53 . 7 Lost Part 70 | . 70 . . . Purge Threat 87 | . 87 . . . Squads Dispatched 2 | . 2 . . . Investigation 1 | . 1 . . . Extermination . | . . . . . Reinforcement 1 | . 1 . . . Assault . | . . . . . Garrison . | . . . . . Intercept . | . . . . . Searches Triggered . | . . . . . Construction Impeded . | . . . . . Haulers Reinforced . | . . . . . Active Scanning Responses . | . . . . . Cargo Convoy Interrupts . | . . . . . Stealth | -11 -10 -10 -10 -9 --------- Run | Yrd Mat Min Exi Min Distress Signals 1 | . 1 . . . Communications Jammed . | . . . . . Distress Signals . | . . . . . Times Spotted 40 | . 36 2 . 2 Peak Tracking Total 6 | . 6 2 . 2 Tactical Retreats 8 | . 8 . . . ECM-based Alert Blocks 7 | . 7 . . . Traps | -11 -10 -10 -10 -9 ------- Run | Yrd Mat Min Exi Min Traps Triggered 1 | . 1 . . . Indirectly . | . . . . . Trap Hack Attempts . | . . . . . Triggered . | . . . . . Disarmed . | . . . . . Reprogrammed . | . . . . . Reused . | . . . . . Traps Extracted . | . . . . . Installed . | . . . . . Triggered . | . . . . . Machines | -11 -10 -10 -10 -9 ---------- Run | Yrd Mat Min Exi Min Machines Disabled . | . . . . . Max in Single Turn . | . . . . . Machines Repaired . | . . . . . Machines Dismantled . | . . . . . Machines Sabotaged . | . . . . . Overloaded Fab Kills . | . . . . . Hacking | -11 -10 -10 -10 -9 --------- Run | Yrd Mat Min Exi Min Machines Accessed 13 | . 7 . 5 1 Terminals 7 | . 6 . . 1 Fabricators . | . . . . . Repair Stations 1 | . 1 . . . Recycling Units . | . . . . . Scanalyzers . | . . . . . Garrison Access . | . . . . . Total Hacks 70 | . 16 . 50 4 Successful 61 | . 10 . 50 1 Failed 9 | . 6 . . 3 Catastrophic 2 | . 2 . . . Database Lockouts . | . . . . . Manual 3 | . . . 3 . Terminals 18 | . 14 . . 4 Fabricators . | . . . . . Repair Stations 2 | . 2 . . . Recycling Units . | . . . . . Scanalyzers . | . . . . . Garrison Access . | . . . . . Terminal Hacks 59 | . 8 . 50 1 Record 49 | . . . 49 . Alert Level 2 | . 2 . . . Unreport Threat 1 | . 1 . . . Locate Traps 1 | . 1 . . . Dispatch Records 1 | . 1 . . . Reinforcement Status 1 | . 1 . . . Registered Components 1 | . 1 . . . Zone Layout 2 | . 1 . . 1 Proto ID Catalog 1 | . . . 1 . Fabricator Hacks . | . . . . . Repair Station Hacks 2 | . 2 . . . Scan Component 1 | . 1 . . . Repair 1 | . 1 . . . Recycling Unit Hacks . | . . . . . Scanalyzer . | . . . . . Garrison Access Hacks . | . . . . . Unauthorized Hacks . | . . . . . Terminals . | . . . . . Fabricators . | . . . . . Repair Stations . | . . . . . Recycling Units . | . . . . . Scanalyzers . | . . . . . Garrison Access . | . . . . . Data Cores Recovered . | . . . . . Used . | . . . . . Hacking Detections 4 | . 4 . . . Full Trace Events . | . . . . . Feedback Events . | . . . . . Feedback Blocked . | . . . . . Robot Schematics Acquired . | . . . . . Robots Built . | . . . . . Authchips . | . . . . . Time . | . . . . . Total Robot Build Rating . | . . . . . Part Schematics Acquired . | . . . . . Parts Built . | . . . . . Authchips . | . . . . . Time . | . . . . . Total Part Build Rating . | . . . . . Part Studies Acquired . | . . . . . Parts Repaired 1 | . 1 . . . Time 38 | . 38 . . . Parts Recycled . | . . . . . Recycled Matter . | . . . . . Retrieved Matter . | . . . . . Retrieved Components . | . . . . . Parts Scanalyzed . | . . . . . Part Schematics Acquired . | . . . . . Parts Damaged . | . . . . . Bothacking | -11 -10 -10 -10 -9 ------------ Run | Yrd Mat Min Exi Min Used RIF Installer . | . . . . . Robots Hacked . | . . . . . Non-combat . | . . . . . Combat . | . . . . . Robot Hacks Applied . | . . . . . Relay Couplers Released . | . . . . . Fabnet Peak Effective % . | . . . . . Robots Rewired . | . . . . . Allies Hacked . | . . . . . Hacks Repelled . | . . . . . Allies | -11 -10 -10 -10 -9 -------- Run | Yrd Mat Min Exi Min Total Allies 1 | . . 1 . . Largest Group 1 | . . 1 1 . Highest-Rated Group 31 | . . 31 31 . Highest-Rated Ally 31 | . . 31 31 . Total Orders . | . . . . . Ally Attacks . | . . . . . Total Damage . | . . . . . Kills . | . . . . . Allies Corrupted . | . . . . . Allies Melted . | . . . . . Intel | -11 -10 -10 -10 -9 ------- Run | Yrd Mat Min Exi Min Active Infowar (turns) 2290 | . 763 188 1002 337 ECM 2290 | . 763 188 1002 337 Robot Analysis Total . | . . . . . Derelict Logs Recovered 1 | . . 1 . . Drone Launches . | . . . . . Drone Recoveries . | . . . . . Exploration | -11 -10 -10 -10 -9 ------------- Run | Yrd Mat Min Exi Min Turns Passed 2521 | 62 932 188 1002 337 Spaces Moved 1416 | 36 538 109 626 107 Core 3 | 3 . . . . Treads 980 | 16 122 109 626 107 Legs 360 | . 360 . . . Wheels 73 | 17 56 . . . Hover . | . . . . . Flight . | . . . . . Fastest Speed 50 | 50 90 160 160 160 Average Speed 145 | 117 125 160 160 160 Slowest Speed 160 | 160 160 160 160 160 Overloaded Moves . | . . . . . Propulsion Burnouts . | . . . . . Robots Hopped . | . . . . . Potential Cave-ins . | . . . . . Cave-ins Triggered . | . . . . . Exploration Rate (%) 46 | 4 84 31 93 21 Regions Visited 4 Branch Regions 3 Pre-discovered Areas 2 | . . 1 1 . Known Exits Taken . | . . . . . Unknown Exits Taken 4 | 1 1 1 1 . Scrap Searched 2 | . . 1 . 1 Spaces Dug 2 | . . . . 2 Terrain Destroyed 29 | . 24 3 . 2 Melee . | . . . . . Projectile 2 | . . . . 2 AOE 27 | . 24 3 . . Terrain Rammed . | . . . . . Walls Destroyed . | . . . . . Machines Disabled . | . . . . . Actions | -11 -10 -10 -10 -9 --------- Run | Yrd Mat Min Exi Min Total 1760 | 51 707 116 627 259 Wait 217 | 2 75 . . 140 Move 1412 | 35 537 108 625 107 Hop . | . . . . . Pick Up 18 | 6 10 1 1 . Fast Attach 14 | 6 6 1 . 1 Attach 4 | . 4 . . . Detach . | . . . . . Swap 14 | 2 12 . . . Drop 12 | . 8 2 1 1 Fire 68 | . 54 4 . 10 Melee . | . . . . . Ram . | . . . . . Kick 1 | . 1 . . . Crush . | . . . . . Escape Stasis . | . . . . . Rewire . | . . . . . Trap . | . . . . . Miscellaneous . | . . . . . Route ------- -11/Scrapyard -10/Materials (discovered 5 exits: [*Mat x3] / [*Min x2]) -10/Mines (discovered 2 exits: [*Mat] / *Exi) -10/Exiles (discovered 2 exits: *Min x2) -9/Mines History --------- Turn | Location | Event 33 | -11/Scrapyard | Discovered new exit (range 15) 63 | -11/Scrapyard | Entered Materials 184 | -10/Materials | Lost 4 parts (1p1n2w) 299 | -10/Materials | Core integrity fell below 50% 310 | -10/Materials | Build established: Mutant 424 | -10/Materials | Discovered new exit (range 10) 508 | -10/Materials | Discovered new exit (range 7) 593 | -10/Materials | Discovered new exit (range 16) 671 | -10/Materials | Build established: Scavenger-Mutant 738 | -10/Materials | Discovered new exit (range 14) 853 | -10/Materials | Discovered new exit (range 6) 950 | -10/Materials | Repaired Lgt. Nuclear Core 995 | -10/Materials | Entered Mines 1034 | -10/Mines | Core integrity fell below 20% 1048 | -10/Mines | Build established: Mutant 1091 | -10/Mines | Learned location of Zion (-7) 1112 | -10/Mines | Discovered new exit (range 11) 1117 | -10/Mines | Found a hidden stash of uninstalled traps 1149 | -10/Mines | Received a Mining Laser from a helpful Derelict 1173 | -10/Mines | Deemed a non-threat by the Exiles lab entrance 1175 | -10/Mines | Discovered new exit (range 5) 1183 | -10/Mines | Entered Exiles 1183 | -10/Exiles | Accompanied by 1 ally 1214 | -10/Exiles | Discovered new exit (range 15) 1241 | -10/Exiles | Met 8R-AWN 1281 | -10/Exiles | Met EX-HEX 1353 | -10/Exiles | Met EX-DEC 1444 | -10/Exiles | Met EX-BIN 1497 | -10/Exiles | Aligned with FarCom system 1499 | -10/Exiles | Given EX-Vault access code 1611 | -10/Exiles | Opened EX-Vault 1622 | -10/Exiles | Found Latent Energy Streamer 1655 | -10/Exiles | Warned to stay clear of 0b10 Research branches 1817 | -10/Exiles | Discovered new exit (range 14) 1925 | -10/Exiles | Visited The Gauntlet 2185 | -10/Exiles | Left Exiles lab with Latent Energy Streamer 2185 | -10/Exiles | Entered Mines 2522 | -9/Mines | Destroyed by G-47 Trooper with Particle Gun Last Messages --------------- Retrieving Zone 6C layout... Downloaded map data. K-01 Serf collects debris. Searching scrap... Found Mining Laser. Found Imp. Hover Unit. Found Cooling System. Found Core Shielding. Found 52 Matter. Acquired 10 matter. Dropped Imp. Heat Sink. Acquired Core Shielding. Acquired 10 matter. K-01 Serf collects debris. C-30 ARC bursts open, deploying its payload. G-47 Trooper unfolds itself. G-34 Mercenary unfolds itself. Mining Laser destroyed. Ion Engine melted. G-34 Mercenary destroyed. Map ----- +----------------------------------------------------+ | | | | | | | | | ?????????????????????????????????????????????????? | | ?????????????????????????????????????????????????? | | ?????????????????????????????????????????????????? | | ?????????????????????????????????????????????????? | | ?????????????????????????????????????????????????? | | ?????????????????????????????????????????????????? | | ?????????????????????????????????????????????????? | | ?????????????????????????????????????????????????? | | ?????????????????????????????????????????????????? | | ?????????????????????????????????????????????????? | | ?????????????????????????????????????????????????? | | ?????????????????????????????????????????????????? | | ?????????????????????????????????????????????????? | | ?????????????????????????????????????????????????? | | ????????????????????????####?????????????????????? | | ???????????????????????? #?????????????????????? | | ??????????????????g?????#$ #?????????????????????? | | ????????????????????????# #?????????????????????? | | ?????????????????l??????# #?????????????????????? | | ????????????????????????# ##????????????????????? | | ???????????????????????## ##???????????????????? | | ???????????????????????# @ #???????????????????? | | ???????????????????????# = #???????????????????? | | ???????????????????????## %r #???????????????????? | | ????????????????????????##g #???????????????????? | | ?????????????????????????# ##??????????????????? | | ?????????????????????????# ##?????????????????? | | ????????????????????????## #?????????????????? | | ???????????????????????## #?????????????????? | | ??????????????????????## ##????????????????? | | ?????????????????????## ##???????????????? | | ????????????????????## #???????????????? | | ????????????????????# r #???????????????? | | ?????????????? #???????????????? | | ?????????????? ## ##???????????????? | | ??????????????? ###### ## #????????????????? | | ??????????????? #?????# ## #????????????????? | | ??????????????? #??????# ## ##### #??????????? | | ???????????????? ???????# #??????????? | | ???????????????? ?????????# ##########??????????? | | ??????????????????????????# #???????????????????? | | ??????????????????????????# #???????????????????? | | ??????????????????????????# #???????????????????? | | ??????????????????????????# !####????????????????? | | ??????????????????????????# =% #????????????????? | | ??????????????????????????# | #????????????????? | +----------------------------------------------------+ Best States ------------- Heat Dissipation 39 Energy Generation 14 Energy Capacity 250 Matter Stores 300 Matter Capacity 300 Sight Range 16 Terrain Scan Density 10 ECM Strength 1 Core Shielding 20 Evasion (%) 55 Recoil Reduction 2 Item Schematics ----------------- None Robot Schematics ------------------ None Fabricated ------------ Nothing Repaired ---------- Lgt. Nuclear Core | 12% | -10/Materials Studied --------- None Alien Tech Used ----------------- None Achievements -------------- Sixth Sense Challenges ------------ None Game ------ Seed AngularProcessingMembrane Manual? 0 Play Time 00:31:29 Cumulative 6.4 hours Start 2026.08.30 @ 15:50:32 End 2026.08.30 @ 16:23:00 Sessions 1 Manual Loads 0 Difficulty Rogue Special Mode None Game No. 13 Rogue 13 Adventurer 0 Explorer 0 Win Type - Total 0 Types 0/0/0/0/0/0/0/0/0/0 Lore% 17 Gallery% 10 Achievement% 11 Wizard Run 0 Options --------- Layout 1 ASCII 0 Keyboard 0 Movement Numpad Keybinds 0 Fullscreen 2 Font 24/X11 Map View 50x35 Zoom Use 0% Tactical HUD 0 Map Filters NONE Filters NONE Steam 1 RUN: 51171aa1-85c9-4292-98b2-c65cb2aadcc8